Cogmind - Beta 15 @@@ ROGUE MODE // 2025.05.14 @ 13:09:33 Player: celerysam Result: Destroyed by P-60 Hacker with Shock Rifle Performance ------------- Evolutions (3) 1500 Regions Visited (5) 1000 Robots Destroyed (34) 170 Value Destroyed (917) 917 Prototype IDs (3) 60 Alien Tech Used (0) 0 Bonus (200) 200 TOTAL SCORE: 3847 Bonus ------- Entered Garrisons 200 Cogmind --------- Core Integrity 0/700 Matter 219/300 Energy 100/100 System Corruption 4% Temperature Cool (9) Movement Core (50) Location -7/Garrison Parts ------- > --- POWER (2) -------- (None) > --- PROPULSION (5) --- (None) > --- UTILITY (4) ------ Hacking Suite Hacking Suite > --- WEAPON (2) ------- (None) > --- INVENTORY (5) ---- Recoil Stabilizer Makeshift Light Armor Plating Hacking Suite Improved Datajack Peak State ------------ > --- POWER ------------ Light Nuclear Core > --- PROPULSION ------- VTOL Module VTOL Module VTOL Module VTOL Module Cesium-ion Thruster > --- UTILITY ---------- Improved Heat Sink Huge Storage Unit Targeting Computer Hacking Suite > --- WEAPON ----------- Improved Medium Laser Heavy Particle Cannon > --- INVENTORY -------- Light Ion Engine Advanced Treads Weight Redist. System Structural Scanner Trap Scanner Seismic Detector Recoil Stabilizer Makeshift Light Armor Plating Scrap Shield Hacking Suite Hacking Suite Heavy EM Pulse Gun Assault Rifle Subdweller Machine Gun Grenade Launcher Improved Datajack Enhanced Flamer Hammer [Rating: 32] Favorites ----------- Power Light Ion Engine Engine Light Ion Engine Power Core Light Nuclear Core Propulsion Wheel Leg Aluminum Leg Wheel Wheel Flight Unit VTOL Module Utility Targeting Computer Device Improved Heat Sink Storage Huge Storage Unit Processor Targeting Computer Hackware Hacking Suite Protection Makeshift Light Armor Plating Weapon Improved Medium Laser Energy Gun Improved Medium Laser Energy Cannon Beam Cannon Ballistic Gun Assault Rifle Ballistic Cannon Light Cannon Launcher Grenade Launcher Special Weapon Enhanced Flamer Impact Weapon Hammer Build | -11 -10 -10 -8 -7 -7 ------- Run | Yrd Mat Sub Mat Fac Gar Slots Evolved 6 | . . . 4 2 . Power 1 | . . . . 1 . Propulsion 3 | . . . 2 1 . Utility 2 | . . . 2 . . Weapon . | . . . . . . Parts Attached 47 | 6 13 6 12 8 2 Power 6 | 1 1 1 1 2 . Engine 4 | 1 . 1 1 1 . Core 2 | . 1 . . 1 . Reactor . | . . . . . . Propulsion 15 | 2 2 3 3 5 . Treads . | . . . . . . Leg 2 | 2 . . . . . Wheel 8 | . 2 3 3 . . Hover . | . . . . . . Flight 5 | . . . . 5 . Utility 9 | 1 3 . 4 . 1 Device 2 | . . . 2 . . Storage 3 | 1 2 . . . . Processor 1 | . 1 . . . . Hackware 2 | . . . 1 . 1 Protection 1 | . . . 1 . . Artifact . | . . . . . . Weapon 17 | 2 7 2 4 1 1 Energy Gun 7 | 1 3 1 1 1 . Energy Cannon 3 | . . 1 2 . . Ballistic Gun 3 | 1 1 . 1 . . Ballistic Cannon 1 | . 1 . . . . Launcher 1 | . 1 . . . . Special Weapon 1 | . . . . . 1 Impact Weapon 1 | . 1 . . . . Slashing Weapon . | . . . . . . Piercing Weapon . | . . . . . . Special Melee Weapon . | . . . . . . Unidentified Prototypes 3 | . 1 . 1 1 . Parts Lost 25 | . . 6 8 2 9 Power 4 | . . 1 2 . 1 Propulsion 13 | . . 3 3 2 5 Utility 2 | . . . 1 . 1 Weapon 6 | . . 2 2 . 2 Highest Loss Streak 9 | . . 3 5 2 9 To Critical Strikes . | . . . . . . Average Backups 18 | 4 13 24 23 19 4 Power 1 | . 1 1 1 1 . Propulsion 5 | 3 4 7 5 4 . Utility 5 | . 3 7 7 7 3 Weapon 5 | . 4 6 7 5 . Tool/Special . | . . . . . . Unused Backups 13 | . 3 . 1 6 3 Power . | . . . . . . Propulsion 2 | . 2 . . . . Utility 6 | . . . . 4 2 Weapon 3 | . 1 . . 2 . Tool/Special 2 | . . . 1 . 1 Average Slot Usage (%) 89 | . 97 88 81 69 82 Engine 5 | . 5 7 7 1 5 Core 5 | . 8 3 . 1 5 Leg 4 | . 10 . . . . Wheel 18 | . 17 22 23 10 . Flight 2 | . . . . 9 27 Device 1 | . . . 6 7 5 Storage 11 | . 14 14 9 5 . Processor 11 | . 11 14 9 7 6 Hackware 1 | . . . 8 7 8 Energy Gun 11 | . 15 9 9 7 5 Energy Cannon 1 | . . 1 4 6 . Ballistic Gun 2 | . 5 . 2 . . Ballistic Cannon 5 | . 2 11 . . . Impact Weapon 3 | . 4 3 . . 6 Peak Build Rating 32 | 6 14 14 23 32 32 Average Rating 13 | 3 11 11 19 24 26 On Entrance 14 | . 6 14 13 22 32 Naked Turns . | . . . . . . Heaviest Build 94 | 11 91 91 94 90 19 Greatest Support 60 | 20 26 30 60 30 21 Greatest Overweight (x) 8 | . 3 8 2 2 3 Average Overweight (x) 2 | . 1 4 1 1 . Largest Inventory Capacity 25 | 8 25 25 25 25 5 Average Capacity 20 | 6 18 25 25 20 5 Most Carried 25 | 6 24 25 25 25 5 Average Carried 18 | 5 14 24 24 20 4 Final Capacity 25 | 8 25 25 25 5 5 Final Carried 25 | 6 24 25 25 5 4 Class Distribution -------------------- 89% | Mutant 6% | Scavenger-Sprinter 3% | Scavenger-Mutant Dominant Class ---------------- Mutant | -10/Materials Mutant | -10/Subcaves Mutant | -8/Materials Mutant | -7/Factory Scavenger-Sprinter | -7/Garrison Resources | -11 -10 -10 -8 -7 -7 ----------- Run | Yrd Mat Sub Mat Fac Gar Matter Collected 779 | 229 222 69 259 . . Remotely . | . . . . . . Salvage Created 1045 | . 365 115 419 26 120 Parts 65 | . 34 10 17 . 4 Haulers Intercepted 1 | . 1 . . . . Recyclers Shooed . | . . . . . . Parts Field Recycled . | . . . . . . Retrieved Matter . | . . . . . . Parts Self-Destructed . | . . . . . . Prevented . | . . . . . . Kills | -11 -10 -10 -8 -7 -7 ------- Run | Yrd Mat Sub Mat Fac Gar Combat Hostiles Destroyed 24 | . 10 5 7 . 2 Melee 1 | . 1 . . . . Guns 17 | . 6 2 7 . 2 Cannons 3 | . . 3 . . . AOE 3 | . 3 . . . . Classes Destroyed 10 | . 7 1 2 . . Worker 2 | . 1 . 1 . . Tunneler 1 | . 1 . . . . Hauler 1 | . 1 . . . . Operator 3 | . 2 . 1 . . Watcher 3 | . 2 . . 1 . Swarmer 8 | . 8 . . . . Grunt 9 | . 2 . 5 . 2 Brawler 1 | . . . 1 . . Sentry 1 | . . . 1 . . Subdweller 5 | . . 5 . . . Best Kill Streak 4 | . 4 2 4 1 2 Combat Bots Only 4 | . 4 2 3 . 2 Max Kills in Single Turn 3 | . 3 1 2 1 1 Gunslinging . | . . . . . . Exploded 3 | . 3 . . . . Melee 1 | . 1 . . . . Uniques/NPCs Destroyed . | . . . . . . Combat | -11 -10 -10 -8 -7 -7 -------- Run | Yrd Mat Sub Mat Fac Gar Hostile Shots Fired 284 | . 44 27 54 . 159 Missed 83 | . 8 9 7 . 59 Hits 201 | . 36 18 47 . 100 Melee 4 | . . . 4 . . Projectile 197 | . 36 18 43 . 100 AOE 4 | . . 4 . . . Critical Strikes 10 | . . 1 3 . 6 Part Disruptions 1 | . 1 . . . . Damage Taken 3119 | . 409 539 768 131 1272 Core 1090 | . 76 157 142 23 692 Absorbed by Shields 110 | . . . . . 110 Core Remaining (%) 60 | 100 . 6 74 . . Volleys Fired 121 | . 51 26 33 . 11 Largest 2 | . 2 2 2 . 1 Hottest 131 | . 101 90 131 . 80 Shots Fired 198 | . 79 50 58 . 11 Gun 158 | . 77 25 46 . 10 Cannon 38 | . 1 25 12 . . Launcher 1 | . 1 . . . . Special 1 | . . . . . 1 Kinetic 63 | . 26 25 12 . . Thermal 123 | . 51 25 46 . 1 Explosive 1 | . 1 . . . . Electromagnetic 11 | . 1 . . . 10 Robot Hit Streak 7 | . 4 7 7 . 7 Robot Miss Streak 4 | . 4 1 3 . 1 Penetration Max . | . . . . . . Secondary Targets . | . . . . . . Shots Hit Robots 120 | . 37 27 43 1 12 Core Hits 53 | . 21 9 16 . 7 Critical Kills . | . . . . . . Critical Parts Destroyed . | . . . . . . Critical Strikes 4 | . 2 . 2 . . Burn 4 | . 2 . 2 . . Melee Attacks 35 | . 1 24 3 1 6 Impact 35 | . 1 24 3 1 6 Slashing . | . . . . . . Piercing . | . . . . . . Sneak Attacks . | . . . . . . Combat Hostiles . | . . . . . . Follow-up Attacks . | . . . . . . Damage Inflicted 2251 | . 786 432 748 39 246 Guns 1517 | . 528 192 599 . 198 Cannons 389 | . . 240 149 . . Explosions 231 | . 231 . . . . Melee 100 | . 27 . . 39 34 Ramming 4 | . . . . . 4 Kinetic 591 | . 180 240 171 . . Thermal 1127 | . 348 192 577 . 10 Explosive 151 | . 151 . . . . Electromagnetic 278 | . 80 . . . 198 Impact 100 | . 27 . . 39 34 Slashing . | . . . . . . Piercing . | . . . . . . Highest Corruption 4 | . . . 1 . 4 Average Corruption 1 | . . . 1 . 2 Corruption Purged . | . . . . . . Corruption Blocked . | . . . . . . Effects 5 | . . . 1 . 4 Message Errors 3 | . . . . . 3 Matter Fused 1 | . . . . . 1 Misfires 1 | . . . 1 . . Overload Shots . | . . . . . . Overflow Damage 15 | . . . 11 4 . Projectiles 11 | . . . 11 . . Explosions . | . . . . . . Melee 4 | . . . . 4 . Knockbacks 4 | . . 2 . 1 1 Impact 2 | . . . . 1 1 Kinetic 2 | . . 2 . . . Secondary . | . . . . . . Self-Inflicted Damage 30 | . 28 . . . 2 Shots 1 | . 1 . . . . Rammed 1 | . . . . . 1 Targets Rammed 1 | . . . . . 1 Kicked . | . . . . . . Crushed . | . . . . . . Highest Temperature 207 | . 207 . 186 . 47 Average Temperature 59 | . 55 . 76 . 25 Received Heat Transfer 925 | . 117 36 423 . 349 Siege Activations . | . . . . . . Martial Activations . | . . . . . . Shielding Activations . | . . . . . . Robots Disrupted . | . . . . . . Combat Hostiles . | . . . . . . Robots Corrupted 1 | . . . . 1 . Combat Hostiles . | . . . . . . Parts Fried 2 | . . . . 1 1 Impact Corruptions 1 | . . . . 1 . Robots Melted . | . . . . . . Combat Hostiles . | . . . . . . Parts Melted 3 | . 1 . 2 . . Heat Transferred 2819 | . 999 383 1357 . 80 Parts Sabotaged . | . . . . . . Parts Stolen . | . . . . . . Parts Stripped . | . . . . . . Power Chain Reactions . | . . . . . . Alert | -11 -10 -10 -8 -7 -7 ------- Run | Yrd Mat Sub Mat Fac Gar Maximum Alert Level . | . . . . . . Low Security (%) 100 | 100 100 . 100 100 100 Level 1 . | . . . . . . Level 2 . | . . . . . . Level 3 . | . . . . . . Level 4 . | . . . . . . Level 5 . | . . . . . . High Security . | . . . . . . Max Security . | . . . . . . Peak Influence 145 | . 145 . 55 7 104 Initial 6 | . . . . 6 4 Average 26 | . 33 . 13 1 33 Influence Increases 655 | . 321 . 197 7 130 Destroy 0b10 Robot/C 380 | . 200 . 140 . 40 Destroy 0b10 Robot/NC 50 | . 35 . 10 5 . Destroy Leader 78 | . 46 . 30 2 . Successful Hack 2 | . 2 . . . . Disable Machine 45 | . 30 . 15 . . Destroy Structure 10 | . 8 . 2 . . Lose Combat Pursuer 90 | . . . . . 90 Influence Decreases 611 | . 236 85 182 15 93 Entered New Map 53 | . . 41 . 9 3 Time Decay 397 | . 236 44 111 6 . Lost Part 161 | . . . 71 . 90 Squads Dispatched 2 | . 1 . 1 . . Investigation . | . . . . . . Extermination . | . . . . . . Reinforcement 2 | . 1 . 1 . . Assault . | . . . . . . Garrison . | . . . . . . Intercept . | . . . . . . Searches Triggered . | . . . . . . Construction Impeded . | . . . . . . Haulers Reinforced . | . . . . . . Active Scanning Responses . | . . . . . . Cargo Convoy Interrupts . | . . . . . . Stealth | -11 -10 -10 -8 -7 -7 --------- Run | Yrd Mat Sub Mat Fac Gar Distress Signals 3 | . 2 . 1 . . Communications Jammed . | . . . . . . Distress Signals . | . . . . . . Times Spotted 54 | . 23 7 12 1 11 Peak Tracking Total 9 | . 4 2 6 1 9 Tactical Retreats 2 | . . . . . 2 Traps | -11 -10 -10 -8 -7 -7 ------- Run | Yrd Mat Sub Mat Fac Gar Traps Triggered 8 | . 1 . . 1 6 Indirectly 1 | . 1 . . . . Trap Hack Attempts . | . . . . . . Triggered . | . . . . . . Disarmed . | . . . . . . Reprogrammed . | . . . . . . Reused . | . . . . . . Traps Extracted . | . . . . . . Installed . | . . . . . . Triggered . | . . . . . . Machines | -11 -10 -10 -8 -7 -7 ---------- Run | Yrd Mat Sub Mat Fac Gar Machines Disabled 3 | . 2 . 1 . . Max in Single Turn 2 | . 2 . 1 . . Machines Repaired . | . . . . . . Machines Dismantled . | . . . . . . Machines Sabotaged . | . . . . . . Overloaded Fab Kills . | . . . . . . Hacking | -11 -10 -10 -8 -7 -7 --------- Run | Yrd Mat Sub Mat Fac Gar Machines Accessed 6 | . 4 . . 2 . Terminals 4 | . 3 . . 1 . Fabricators . | . . . . . . Repair Stations . | . . . . . . Recycling Units 1 | . 1 . . . . Scanalyzers . | . . . . . . Garrison Access 1 | . . . . 1 . Total Hacks 6 | . 4 . . 2 . Successful 6 | . 4 . . 2 . Failed . | . . . . . . Catastrophic . | . . . . . . Database Lockouts . | . . . . . . Manual 3 | . 3 . . . . Terminals 4 | . 3 . . 1 . Fabricators . | . . . . . . Repair Stations . | . . . . . . Recycling Units 1 | . 1 . . . . Scanalyzers . | . . . . . . Garrison Access 1 | . . . . 1 . Terminal Hacks 1 | . . . . 1 . Open DSF 1 | . . . . 1 . Fabricator Hacks . | . . . . . . Repair Station Hacks . | . . . . . . Recycling Unit Hacks 1 | . 1 . . . . Report Inventory 1 | . 1 . . . . Scanalyzer . | . . . . . . Garrison Access Hacks 1 | . . . . 1 . Unlock Access 1 | . . . . 1 . Unauthorized Hacks 3 | . 3 . . . . Terminals 3 | . 3 . . . . Botnet 3 | . 3 . . . . Fabricators . | . . . . . . Repair Stations . | . . . . . . Recycling Units . | . . . . . . Scanalyzers . | . . . . . . Garrison Access . | . . . . . . Data Cores Recovered 3 | . 2 . 1 . . Used 1 | . 1 . . . . Hacking Detections 1 | . . . . 1 . Full Trace Events . | . . . . . . Feedback Events . | . . . . . . Feedback Blocked . | . . . . . . Robot Schematics Acquired . | . . . . . . Robots Built . | . . . . . . Authchips . | . . . . . . Time . | . . . . . . Total Robot Build Rating . | . . . . . . Part Schematics Acquired . | . . . . . . Parts Built . | . . . . . . Authchips . | . . . . . . Time . | . . . . . . Total Part Build Rating . | . . . . . . Parts Repaired . | . . . . . . Time . | . . . . . . Parts Recycled . | . . . . . . Recycled Matter . | . . . . . . Retrieved Matter . | . . . . . . Retrieved Components . | . . . . . . Parts Scanalyzed . | . . . . . . Part Schematics Acquired . | . . . . . . Parts Damaged . | . . . . . . Bothacking | -11 -10 -10 -8 -7 -7 ------------ Run | Yrd Mat Sub Mat Fac Gar Used RIF Installer . | . . . . . . Robots Hacked . | . . . . . . Non-combat . | . . . . . . Combat . | . . . . . . Robot Hacks Applied . | . . . . . . Relay Couplers Released . | . . . . . . Fabnet Peak Effective % . | . . . . . . Robots Rewired . | . . . . . . Allies Hacked . | . . . . . . Hacks Repelled . | . . . . . . Allies | -11 -10 -10 -8 -7 -7 -------- Run | Yrd Mat Sub Mat Fac Gar Total Allies . | . . . . . . Largest Group . | . . . . . . Highest-Rated Group . | . . . . . . Highest-Rated Ally . | . . . . . . Total Orders . | . . . . . . Ally Attacks . | . . . . . . Total Damage . | . . . . . . Kills . | . . . . . . Allies Corrupted . | . . . . . . Allies Melted . | . . . . . . Intel | -11 -10 -10 -8 -7 -7 ------- Run | Yrd Mat Sub Mat Fac Gar Active Infowar (turns) . | . . . . . . Robot Analysis Total . | . . . . . . Derelict Logs Recovered . | . . . . . . Drone Launches . | . . . . . . Drone Recoveries . | . . . . . . Exploration | -11 -10 -10 -8 -7 -7 ------------- Run | Yrd Mat Sub Mat Fac Gar Turns Passed 3174 | 75 1188 1175 390 109 237 Spaces Moved 2071 | 58 749 657 211 96 300 Core 68 | 12 . . . . 56 Treads . | . . . . . . Legs 319 | 46 273 . . . . Wheels 1408 | . 476 657 211 64 . Hover . | . . . . . . Flight 276 | . . . . 32 244 Fastest Speed 23 | 50 90 119 107 23 23 Average Speed 118 | 105 125 154 115 87 35 Slowest Speed 200 | 120 135 200 119 119 200 Overloaded Moves . | . . . . . . Propulsion Burnouts . | . . . . . . Robots Hopped . | . . . . . . Potential Cave-ins . | . . . . . . Cave-ins Triggered . | . . . . . . Exploration Rate (%) 38 | 3 98 51 20 3 53 Regions Visited 5 Branch Regions 1 Pre-discovered Areas 1 | . . 1 . . . Known Exits Taken 1 | . . . . 1 . Unknown Exits Taken 4 | 1 1 1 1 . . Scrap Searched . | . . . . . . Spaces Dug 1 | . . . 1 . . Terrain Destroyed 8 | . 7 . 1 . . Melee 1 | . . . 1 . . Projectile . | . . . . . . AOE 7 | . 7 . . . . Terrain Rammed . | . . . . . . Walls Destroyed . | . . . . . . Machines Disabled . | . . . . . . Actions | -11 -10 -10 -8 -7 -7 --------- Run | Yrd Mat Sub Mat Fac Gar Total 2541 | 69 921 723 295 122 411 Wait 97 | . 71 1 21 4 . Move 2067 | 57 748 656 210 96 300 Hop . | . . . . . . Pick Up 49 | 6 24 5 9 5 . Fast Attach 16 | 6 4 2 3 1 . Attach 23 | . . 4 8 9 2 Detach 1 | . . . . . 1 Swap 17 | . 9 4 4 . . Drop 27 | . 13 1 4 6 3 Fire 121 | . 51 26 33 . 11 Melee 35 | . 1 24 3 1 6 Ram 1 | . . . . . 1 Kick . | . . . . . . Crush . | . . . . . . Escape Stasis 87 | . . . . . 87 Rewire . | . . . . . . Trap . | . . . . . . Miscellaneous . | . . . . . . Route ------- -11/Scrapyard -10/Materials (discovered 5 exits: [*Mat x3] / [*Min] / [*Sub]) -10/Subcaves (discovered 2 exits: [*Mat x2]) -8/Materials -7/Factory -7/Garrison (discovered 2 exits: [*Fac x2]) History --------- Turn | Location | Event 15 | -11/Scrapyard | Discovered new exit (range 16) 76 | -11/Scrapyard | Entered Materials 329 | -10/Materials | Build established: Mutant 395 | -10/Materials | Discovered new exit (range 3) 604 | -10/Materials | Discovered new exit (range 12) 810 | -10/Materials | Discovered new exit (range 12) 1113 | -10/Materials | Discovered new exit (range 6) 1206 | -10/Materials | Discovered new exit (range 5) 1264 | -10/Materials | Entered Subcaves 1265 | -10/Subcaves | Approached by a straggling Scientist 1496 | -10/Subcaves | A swath of the cavern ceiling suddenly collapsed 1823 | -10/Subcaves | Core integrity fell below 50% 1882 | -10/Subcaves | Core integrity fell below 20% 1936 | -10/Subcaves | Lost 3 parts (2n1w) 1972 | -10/Subcaves | Learned location of Zion (-6) 1972 | -10/Subcaves | Met a Zionite searching for "candidates" 2307 | -10/Subcaves | Discovered new exit (range 13) 2354 | -10/Subcaves | Discovered new exit (range 2) 2389 | -10/Subcaves | Shifting Twisted Machinery released Enh. Flamer 2393 | -10/Subcaves | Shifting Twisted Machinery released Mak. System Shield 2439 | -10/Subcaves | Entered Materials 2439 | -8/Materials | Evolved 4 slots: Propulsion x2, Utility x2 2622 | -8/Materials | Lost 5 parts (1p3n1w) 2703 | -8/Materials | Discovered new exit (range 15) 2785 | -8/Materials | Lost 3 parts (1p1u1w) 2829 | -8/Materials | Entered Factory 2829 | -7/Factory | Evolved 2 slots: Power x1, Propulsion x1 2841 | -7/Factory | Identified exit to DSF 2938 | -7/Factory | Identified exit to Garrison 2938 | -7/Factory | Entered Garrison 2950 | -7/Garrison | Triggered checkpoint 3006 | -7/Garrison | Triggered checkpoint 3050 | -7/Garrison | Discovered new exit (range 10) 3064 | -7/Garrison | Triggered checkpoint 3083 | -7/Garrison | Triggered checkpoint 3113 | -7/Garrison | Discovered new exit (range 15) 3158 | -7/Garrison | Triggered checkpoint 3163 | -7/Garrison | Core integrity fell below 50% 3173 | -7/Garrison | Core integrity fell below 20% 3175 | -7/Garrison | Destroyed by P-60 Hacker with Shock Rifle Last Messages --------------- 03143_ A bubble of rippling energy engulfs the area. 03143_ Field strength at 94. 03144_ Field strength at 88. 03145_ Field strength at 82. 03146_ Field strength at 68. 03147_ Field strength at 62. 03148_ Field strength at 56. 03149_ Field strength at 46. 03150_ Field strength at 35. 03151_ Field strength at 19. 03151_ Hammer destroyed. 03152_ Field strength at 1. 03152_ Stasis field depleted. 03158_ Beams of light sweep through the air. An alarm sounds. 03159_ 3JP/5OG,BK XK1EPPQU5DGKBFH#4RXG2ZQSAR 03161_ Enh. Flamer destroyed. 03163_ Targeting Computer destroyed. 03172_ Slammed into G-47 Trooper. Map ----- +----------------------------------------------------+ | ?????????????????????????????????????????# #????? | | ?????????????????????????????????????????# #????? | | ?????????????????######################### #????? | | ????????????????? * #????? | | ???????????????? [ #????? | | ???????????????? ######### #????? | | ???????????????? #???????# #????? | | ???????????????? #???????# T#???? | | ???????????????? #???????# ##???? | | ??????????????? #?#####?# #????? | | ?????????????# #? ### #????? | | ?????????????# # #? #????? | | ?????????????# < # #? #????? | | ?????????????# ! #? #????? | | ?????????????# ## ##? #????? | | ?????????????# #??####?? ?????? | | ?????????????# #???????? ?????? | | ?????????????# #???????? ?????? | | ?????????????# #???????????????? | | ?????????????# #???????????????? | | ?????????????# #???????????????? | | ?????????????# #???????????????? | | ???????#####?######### ##########???????????????? | | ???????# #?????????# #????????????????????????? | | ??###### ###########g ##########???????????????? | | ?# s p @ ????????? | | ?# s s g ????????? | | ?## ############################### #??????????? | | ?#""""???????????????????????????????????????????? | | ?#####???????????????????????????????????????????? | | ?????????????????????????????????????????????????? | | ?????????????????????????????????????????????????? | | ?????????????????????????????????????????????????? | | ?????????????????????????????????????????????????? | | ?????????????????????????????????????????????????? | | ?????????????????????????????????????????????????? | | ?????????????????????????????????????????????????? | | ?????????????????????????????????????????????????? | | | | | | | | | | | | | | | | | | | | | | | | | +----------------------------------------------------+ Best States ------------- Heat Dissipation 48 Energy Generation 19 Energy Capacity 185 Matter Stores 300 Matter Capacity 300 Sight Range 16 Terrain Scan Density 10 Armor Coverage 100 Evasion (%) 65 Targeting Accuracy 5 Offensive Hacking 20 Item Schematics ----------------- None Robot Schematics ------------------ None Fabricated ------------ Nothing Repaired ---------- Nothing Alien Tech Used ----------------- None Achievements -------------- None Challenges ------------ None Game ------ Seed PhysicsSingularityAnalyzer Manual? 0 Play Time 00:28:18 Cumulative 251.2 hours Start 2025.05.14 @ 12:29:42 End 2025.05.14 @ 13:09:33 Sessions 1 Manual Loads 0 Difficulty Rogue Special Mode None Game No. 373 Rogue 373 Adventurer 0 Explorer 0 Win Type - Total 1 Types 1/0/0/0/0/0/0/0/0/0 Lore% 59 Gallery% 61 Achievement% 43 Wizard Run 0 Options --------- Layout 1 ASCII 0 Keyboard 0 Movement Mouse Keybinds 0 Fullscreen 2 Font 24/Smallcaps Map View 50x35 Zoom Use 0% Tactical HUD 1 Map Filters NONE Filters NONE Steam 1 RUN: ee3ae1cc-92f9-41ba-8f67-c452eec1bed7